fUSD/lending_fUSD_20250511
["ID","MTS","AMOUNT","RATE_DAILY","PERIOD"]
[360758128,1746980234183,-253.31866889,0.00044566,30]
[360758129,1746980234209,-7637.24991622,0.00044596,120]
[360758130,1746980234235,-1237.25223,0.00044688,30]
[360758131,1746980234262,-150.0,0.00044699,30]
[360758132,1746980234292,-1112.61073865,0.000447,120]
[360758133,1746980234321,-150.0,0.00044707,30]
[360758134,1746980234353,-202.24993792,0.00044733,30]
[360758135,1746980234380,-253.31866889,0.00044733,30]
[360758136,1746980234408,-150.0,0.00044733,30]
[360758137,1746980234435,-2110.0,0.00044802,30]
[360758138,1746980234463,-150.0,0.00044843,120]
[360758139,1746980234491,-150.0,0.00044848,30]
[360758140,1746980234519,-1237.25223,0.00044888,30]
[360758141,1746980234551,-162.75574888,0.000449,30]
[360758142,1746980234579,-302302.17350082,0.000449,30]
[360758143,1746980234607,-500.0,0.000449,30]
[360758144,1746980234634,-202.24993792,0.00044901,30]
[360758145,1746980234661,-253.31866889,0.00044901,30]
[360758146,1746980234690,-150.0,0.00044918,30]
[360758147,1746980234718,-150.0,0.00044941,30]
[360758148,1746980234746,-437.0,0.00044986,120]
[360758149,1746980234775,-5000.0,0.00044987,31]
[360758150,1746980234808,-494.38555758,0.0004499,30]
[360758151,1746980234836,-152.3768598,0.00044998,120]
[360758152,1746980234867,-50000.0,0.00045,45]
[360758153,1746980234895,-212.61441683,0.00045,120]
[360758154,1746980234922,-461.24336362,0.00045,120]
[360758155,1746980234950,-2958.47130844,0.00045,120]
[360758156,1746980234977,-197.60778707,0.00045,60]
[360758157,1746980235004,-391.00727174,0.00045,30]
[360758158,1746980235031,-10000.0,0.00045,120]
[360758159,1746980235060,-10000.0,0.00045,120]
[360758160,1746980235086,-151.0,0.00045,120]
[360758161,1746980235113,-900.0,0.00045,46]
[360758162,1746980235139,-4000.85062696,0.00045,120]
[360758163,1746980235165,-1293.80057516,0.00045,60]
[360758164,1746980235191,-150.0,0.00045,120]
[360758165,1746980235216,-150.0,0.00045,120]
[360758166,1746980235241,-159.22881767,0.00045,32]
[360758167,1746980235268,-914.65589818,0.00045,120]
[360758168,1746980235296,-1500.0,0.00045,120]
[360758169,1746980235322,-2116.0,0.00045,120]
[360758170,1746980235348,-2000.0,0.00045,120]
[360758171,1746980235374,-1227.04,0.00045,120]
[360758172,1746980235400,-41782.90954224,0.00045,30]
[360758173,1746980235429,-1861.351667,0.00045,120]
[360758174,1746980235455,-10829.42953428,0.00045,30]
[360758175,1746980235481,-230.0,0.00045,120]
[360758176,1746980235506,-1554.02339697,0.00045,120]
[360758177,1746980235532,-58505.87433791,0.00045,120]
[360758178,1746980235561,-3150.71,0.00045,120]
[360758179,1746980235588,-2853.67588714,0.00045,120]
[360758180,1746980235614,-473.37628525,0.00045,120]
[360758181,1746980235641,-1068.0,0.00045,120]
[360758182,1746980235667,-448754.39989742,0.00045,30]
[360758183,1746980244960,197.39,0.00013932,2]
[360758185,1746980261809,-312.0,0.00041625,30]
[360758186,1746980261839,-312.0,0.00041625,30]
[360758187,1746980261867,-312.0,0.00041625,30]
[360758188,1746980261895,-312.0,0.00041625,30]
[360758189,1746980261923,-312.0,0.00041625,30]
[360758190,1746980261950,-312.0,0.00041625,30]
[360758191,1746980261976,-312.0,0.00041625,30]
[360758192,1746980262002,-312.0,0.00041625,30]
[360758193,1746980262030,-312.0,0.00041625,30]
[360758194,1746980262056,-312.0,0.00041625,30]
[360758195,1746980262085,-312.0,0.00041625,30]
[360758196,1746980262111,-312.0,0.00041625,30]
[360758197,1746980262136,-312.0,0.00041625,30]
[360758198,1746980262163,-312.0,0.00041625,30]
[360758199,1746980262191,-572.0,0.00041631,30]
[360758200,1746980262220,-572.0,0.00041631,30]
[360758201,1746980262256,-572.0,0.00041631,30]
[360758202,1746980262284,-572.0,0.00041631,30]
[360758203,1746980262315,-572.0,0.00041631,30]
[360758204,1746980262343,-572.0,0.00041631,30]
[360758205,1746980262371,-572.0,0.00041631,30]
[360758206,1746980262399,-572.0,0.00041631,30]
[360758207,1746980262427,-572.0,0.00041631,30]
[360758208,1746980262455,-572.0,0.00041631,30]
[360758209,1746980262483,-572.0,0.00041631,30]
[360758210,1746980262510,-572.0,0.00041631,30]
[360758211,1746980262536,-572.0,0.00041631,30]
[360758212,1746980262565,-572.0,0.00041631,30]
[360758213,1746980262593,-199.52448893,0.000429,120]
[360758214,1746980263763,-909.73018037,0.000449,120]
[360758215,1746980263794,-369472.27731007,0.00045,30]
[360758216,1746980263824,-1018.7933343,0.00045,120]
[360758217,1746980263851,-540.20067935,0.00045,120]
[360758218,1746980263879,-8305.72616885,0.00045,120]
[360758219,1746980263905,-61015.05467979,0.00045,60]
[360758220,1746980263932,-54350.0,0.00045,120]
[360758221,1746980263959,-2982.6884929,0.00045,120]
[360758222,1746980263986,-150.0,0.00045,120]
[360758223,1746980264013,-400.0,0.00045,120]
[360758224,1746980264040,-150.0,0.00045,120]
[360758225,1746980264068,-150.0,0.00045,120]
[360758226,1746980264096,-150.0,0.00045011,30]
[360758227,1746980264122,-202.24993792,0.00045068,30]
[360758228,1746980264148,-253.31866889,0.00045068,30]
[360758229,1746980264174,-150.0,0.00045068,30]
[360758230,1746980264200,-1237.25223,0.00045088,30]
[360758231,1746980264226,-150.0,0.00045174,30]
[360758232,1746980264252,-350.0,0.00045177,35]
[360758233,1746980264278,-2356.88,0.0004518,110]
[360758234,1746980264303,-150.0,0.00045194,30]
[360758235,1746980264332,-150.0,0.00045194,30]
[360758236,1746980264359,-449.63,0.00045205,120]
[360758237,1746980264385,-202.24993792,0.00045236,30]
[360758238,1746980264410,-253.31866889,0.00045236,30]
[360758239,1746980264437,-1237.25223,0.00045288,30]
[360758240,1746980264464,-3009.02332028,0.000453,120]
[360758241,1746980264491,-2110.0,0.00045302,30]
[360758242,1746980264518,-150.0,0.00045324,30]
[360758243,1746980264545,-202.24993792,0.00045403,30]
[360758244,1746980264574,-253.31866889,0.00045403,30]
[360758245,1746980264602,-150.0,0.00045408,30]
[360758246,1746980264629,-1237.25223,0.00045488,30]
[360758247,1746980264657,-307.34299,0.000455,120]
[360758248,1746980264684,-183.91302,0.000455,120]
[360758249,1746980264712,-160.0,0.000455,57]
[360758250,1746980264739,-160.0,0.000455,57]
[360758251,1746980264765,-150.0,0.00045539,30]
[360758252,1746980264793,-1500.0,0.0004555,32]
[360758253,1746980264823,-202.24993792,0.0004557,30]
[360758254,1746980264849,-253.31866889,0.0004557,30]
[360758255,1746980264878,-150.0,0.0004557,30]
[360758256,1746980264905,-2176.019152,0.000456,120]
[360758257,1746980264933,-150.0,0.00045637,30]
[360758258,1746980264961,-150.0,0.00045641,30]
[360758259,1746980264988,-150.0,0.00045654,30]
[360758260,1746980265017,-150.0,0.00045658,120]
[360758261,1746980265045,-150.0,0.00045662,120]
[360758262,1746980265074,-1237.25223,0.00045688,30]
[360758263,1746980265100,-322.51889804,0.000457,120]
[360758264,1746980265127,-150.0,0.00045716,120]
[360758265,1746980265153,-72586.58117844,0.0004573,30]
[360758266,1746980265178,-202.24993792,0.00045738,30]
[360758267,1746980265204,-253.31866889,0.00045738,30]
[360758268,1746980265231,-2110.0,0.00045802,30]
[360758269,1746980265256,-150.0,0.00045875,30]
[360758270,1746980265281,-413.7489515,0.0004588,30]
[360758271,1746980265307,-150.0,0.00045884,30]
[360758272,1746980265336,-1237.25223,0.00045888,30]
[360758273,1746980265362,-573.4230557,0.000459,119]
[360758274,1746980265389,-202.24993792,0.00045905,30]
[360758275,1746980265415,-253.31866889,0.00045905,30]
[360758276,1746980265443,-2210.0,0.0004593,120]
[360758277,1746980265470,-150.0,0.0004595,30]
[360758278,1746980265497,-437.0,0.00045986,120]
[360758279,1746980265528,-50000.0,0.00046,46]
[360758280,1746980265557,-3090.86970329,0.00046,120]
[360758281,1746980265585,-10000.0,0.00046,30]
[360758282,1746980265612,-330.31702284,0.00046,120]
[360758283,1746980265638,-803.84707429,0.00046,60]
[360758284,1746980265666,-3577.0,0.00046,120]
[360758285,1746980265693,-52542.69020295,0.00046,120]
[360758286,1746980265722,-2000.0,0.00046,120]
[360758287,1746980265748,-1200.0,0.00046,120]
[360758288,1746980265774,-2372.95517746,0.00046,30]
[360758289,1746980265801,-70445.24421313,0.00046,120]
[360758290,1746980265828,-1386.30421052,0.00046,30]
[360758291,1746980265856,-1201.11564628,0.00046,30]
[360758292,1746980265883,-1000.0,0.00046,120]
[360758293,1746980265911,-3000.0,0.00046,60]
[360758294,1746980266131,-9081.9116687,0.00046,120]
[360758295,1746980266160,-3645.53140234,0.00046,60]
[360758296,1746980266189,-104480.51020393,0.00046,30]
[360758297,1746980266217,-6102.37176498,0.00046,120]
[360758298,1746980266244,-3217.37365604,0.00046,120]
[360758299,1746980266270,-1000.0,0.00046,30]
[360758300,1746980266297,-150.0,0.00046042,120]
[360758301,1746980266328,-202.24993792,0.00046073,30]
[360758302,1746980266355,-253.31866889,0.00046073,30]
[360758303,1746980266381,-150.0,0.00046073,30]
[360758304,1746980266408,-1237.25223,0.00046088,30]
[360758305,1746980266435,-274.33,0.000461,120]
[360758306,1746980266461,-189.92641047,0.000461,30]
[360758307,1746980266488,-1500.0,0.000461,120]
[360758308,1746980266515,-150.0,0.00046108,30]
[360758309,1746980266544,-150.0,0.00046115,30]
[360758310,1746980266573,-350.0,0.00046135,35]
[360758311,1746980266601,-150.0,0.00046164,120]
[360758312,1746980266629,-381.89496221,0.0004618,90]
[360758313,1746980266656,-200.0,0.00046208,30]
[360758314,1746980266684,-1429.49559631,0.0004621,30]
[360758315,1746980266712,-384.93442535,0.00046212,30]
[360758316,1746980266743,-641.03764656,0.00046213,30]
[360758317,1746980266771,-39862.72519594,0.00046216,30]
[360758318,1746980266801,-24667.05531329,0.00046218,30]
[360758319,1746980266832,-300.60962019,0.0004622,30]
[360758320,1746980266860,-2376.64672432,0.0004622,30]
[360758321,1746980266890,-270.05779352,0.00046221,30]
[360758322,1746980266917,-2376.64672432,0.00046223,30]
[360758323,1746980266944,-300.00000001,0.00046223,30]
[360758324,1746980266970,-24940.89604083,0.00046224,30]
[360758325,1746980266995,-2320.05911369,0.00046225,30]
[360758326,1746980267021,-24940.89604083,0.00046227,30]
[360758327,1746980267048,-214.78183723,0.00046228,30]
[360758328,1746980267076,-264292.74755439,0.00046228,30]
[360758329,1746980267102,-836.7264798,0.00046229,30]
[360758330,1746980267130,-448.38533066,0.00046229,30]
[360758331,1746980267156,-150.0,0.0004623,30]
[360758332,1746980267183,-249.69938637,0.0004623,30]
[360758333,1746980267211,-334.33242146,0.0004623,30]
[360758334,1746980267239,-867.91046134,0.00046232,30]
[360758335,1746980267266,-400.74627678,0.00046232,30]
[360758336,1746980267292,-867.91046134,0.00046233,30]
[360758337,1746980267322,-8449.26353462,0.00046239,30]
[360758338,1746980267349,-641.03764656,0.00046239,30]
[360758339,1746980267376,-202.24993792,0.0004624,30]
[360758340,1746980267403,-253.31866889,0.0004624,30]
[360758341,1746980267429,-2320.05911369,0.00046243,30]
[360758342,1746980267456,-867.91046134,0.00046243,30]
[360758343,1746980267482,-3843.62753531,0.00046245,30]
[360758344,1746980267509,-1429.49559631,0.00046246,30]
[360758345,1746980267536,-8449.26353462,0.00046246,30]
[360758346,1746980267567,-400.74627678,0.00046248,30]
[360758347,1746980267594,-2320.05911369,0.00046248,30]
[360758348,1746980267622,-824.31479918,0.00046248,30]
[360758349,1746980267650,-300.00000001,0.00046249,30]
[360758350,1746980267676,-3843.62753531,0.0004625,30]
[360758351,1746980267702,-24667.05531329,0.00046252,30]
[360758352,1746980267729,-1051.52405048,0.00046254,30]
[360758353,1746980267755,-274.58790059,0.00046255,30]
[360758354,1746980267781,-824.31479918,0.00046261,30]
[360758355,1746980267814,-24940.89604083,0.00046261,30]
[360758356,1746980267841,-675.32284749,0.00046261,30]
[360758357,1746980267872,-150.0,0.00046262,30]
[360758358,1746980267904,-300.60962019,0.00046263,30]
[360758359,1746980267933,-209.72591967,0.00046265,30]
[360758360,1746980267961,-448.38533066,0.00046265,30]
[360758361,1746980267987,-200.0,0.00046267,30]
[360758362,1746980268012,-3843.62753531,0.00046268,30]
[360758363,1746980268040,-243.23372094,0.00046268,30]
[360758364,1746980268069,-264292.74755439,0.00046271,30]
[360758365,1746980268096,-8449.26353462,0.00046272,30]
[360758366,1746980268124,-264292.74755439,0.00046275,30]
[360758367,1746980268152,-924.24846594,0.00046278,30]
[360758368,1746980268179,-924.24846594,0.00046278,30]
[360758369,1746980268205,-675.32284749,0.0004628,30]
[360758370,1746980268232,-1429.49559631,0.00046283,30]
[360758371,1746980268263,-39862.72519594,0.00046283,30]
[360758372,1746980268291,-214.69059192,0.00046283,30]
[360758373,1746980268319,-334.33242146,0.00046284,30]
[360758374,1746980268346,-2376.64672432,0.00046284,30]
[360758375,1746980268372,-384.93442535,0.00046285,30]
[360758376,1746980268398,-264.55488226,0.00046287,30]
[360758377,1746980268425,-39862.72519594,0.00046287,30]
[360758378,1746980268452,-1237.25223,0.00046288,30]
[360758379,1746980268479,-836.7264798,0.00046289,30]
[360758380,1746980268506,-24667.05531329,0.0004629,30]
[360758381,1746980268534,-1051.52405048,0.00046293,30]
[360758382,1746980268561,-245.18841758,0.00046298,30]
[360758383,1746980268588,-2110.0,0.00046302,30]
[360758384,1746980268616,-148871.27556386,0.0004633,120]
[360758385,1746980268642,-150.0,0.00046342,30]
[360758386,1746980268669,-17596.80178456,0.00046362,120]
[360758387,1746980268696,-150.0,0.00046383,120]
[360758388,1746980268724,-202.24993792,0.00046408,30]
[360758389,1746980268933,-253.31866889,0.00046408,30]
[360758390,1746980268960,-2742018.60397234,0.00046469,120]
[360758391,1746980269484,150.0,0.00013379,2]
[360758392,1746980286042,-500.0,0.00041095,120]
[360758393,1746980286071,-500.0,0.00041095,120]
[360758394,1746980286100,-500.0,0.00041095,120]
[360758395,1746980286128,-500.0,0.00041095,120]
[360758396,1746980286156,-500.0,0.00041095,120]
[360758397,1746980286186,-153.0,0.00041609,30]
[360758398,1746980286215,-153.0,0.00041609,30]
[360758399,1746980286244,-153.0,0.00041609,30]
[360758400,1746980286271,-153.0,0.00041609,30]
[360758401,1746980286298,-153.0,0.00041609,30]
[360758402,1746980286325,-153.0,0.00041609,30]
[360758403,1746980286355,-153.0,0.00041609,30]
[360758404,1746980286383,-153.0,0.00041609,30]
[360758405,1746980286412,-153.0,0.00041609,30]
[360758406,1746980286441,-153.0,0.00041609,30]
[360758407,1746980286469,-153.0,0.00041609,30]
[360758408,1746980286498,-153.0,0.00041609,30]
[360758409,1746980286526,-153.0,0.00041609,30]
[360758410,1746980286555,-153.0,0.00041609,30]
[360758411,1746980286587,-201.99,0.0004198,120]
[360758412,1746980286615,-150.5,0.0004199,120]
[360758413,1746980287561,-311.77,0.00044,120]
[360758414,1746980287591,-739.23716936,0.00044,120]
[360758415,1746980287621,-312.12,0.00044,120]
[360758416,1746980287649,-311.75,0.00044,120]
[360758417,1746980287681,-150.0,0.00046077,120]
[360758418,1746980287709,-868864.63602766,0.00046469,120]
[360758419,1746980287737,-1237.25223,0.00046488,30]
[360758420,1746980287765,-4179.0,0.000465,110]
[360758421,1746980287794,-307.34306,0.000465,120]
[360758422,1746980287825,-160.0,0.000465,61]
[360758423,1746980287858,-160.0,0.000465,61]
[360758424,1746980287886,-2000000.0,0.00046569,120]
[360758425,1746980287912,-200.0,0.00046574,30]
[360758426,1746980287939,-151.0,0.00046574,30]
[360758427,1746980287968,-200.0,0.00046574,30]
[360758428,1746980287994,-150.51577473,0.00046575,30]
[360758429,1746980288021,-184.96570397,0.00046575,30]
[360758430,1746980288048,-150.7536274,0.00046575,30]
[360758431,1746980288074,-150.7538249,0.00046575,30]
[360758432,1746980288105,-160.01741508,0.00046575,30]
[360758433,1746980288132,-150.33778884,0.00046575,30]
[360758434,1746980288159,-271.20604181,0.00046575,30]
[360758435,1746980288185,-197.27121571,0.00046575,30]
[360758436,1746980288213,-202.24993792,0.00046575,30]
[360758437,1746980288240,-253.31866889,0.00046575,30]
[360758438,1746980288267,-298.18705749,0.00046575,30]
[360758439,1746980288299,-449.63,0.00046575,120]
[360758440,1746980288326,-1000.0,0.00046575,120]
[360758441,1746980288363,-200.0,0.00046575,90]
[360758442,1746980288392,-1000.0,0.00046602,120]
[360758443,1746980288420,-1000.0,0.0004663,120]
[360758444,1746980288447,-1000.0,0.00046657,120]
[360758445,1746980288476,-1000.0,0.00046684,120]
[360758446,1746980288504,-1237.25223,0.00046688,30]
[360758447,1746980288532,-40000.0,0.000467,30]
[360758448,1746980288559,-1000.0,0.00046712,120]
[360758449,1746980288589,-1000.0,0.00046739,120]
[360758450,1746980288617,-1000.0,0.00046767,120]
[360758451,1746980288644,-1000.0,0.00046794,120]
[360758452,1746980288673,-257.56485401,0.000468,120]
[360758453,1746980288700,-2384.22264327,0.000468,120]
[360758454,1746980288728,-2084.94,0.00046802,30]
[360758455,1746980288756,-160.92523482,0.00046821,120]
[360758456,1746980288783,-1237.25223,0.00046888,30]
[360758457,1746980288812,-2000.0,0.0004689,41]
[360758458,1746980288841,-150.0,0.00046903,120]
[360758459,1746980288870,-287.0,0.00046988,120]
[360758460,1746980288903,-50000.0,0.00047,47]
[360758461,1746980288931,-1000.0,0.00047,120]
[360758462,1746980288959,-5000.0,0.00047,120]
[360758463,1746980288987,-1000.0,0.00047,120]
[360758464,1746980289015,-900.0,0.00047,48]
[360758465,1746980289042,-177.41868726,0.00047,120]
[360758466,1746980289069,-10334.98206044,0.00047,30]
[360758467,1746980289099,-54350.0,0.00047,120]
[360758468,1746980289127,-350.0,0.00047094,35]
[360758469,1746980289155,-150.0,0.00047157,30]
[360758470,1746980289181,-1000.0,0.00047478,31]
[360758471,1746980289209,-1000.0,0.000475,120]
[360758472,1746980289419,-60000.0,0.000475,30]
[360758473,1746980289466,-3223.0,0.00047543,120]
[360758474,1746980289496,-150.0,0.0004767,120]
[360758475,1746980289527,-635.70458461,0.000478,110]
[360758476,1746980289556,-3000.0,0.0004786,45]
[360758477,1746980289587,-2000.0,0.0004786,41]
[360758478,1746980289615,-449.63,0.00047945,120]
[360758479,1746980289644,-1690.0,0.00047995,30]
[360758480,1746980289672,-1000.0,0.00047999,120]
[360758481,1746980289701,-50000.0,0.00048,48]
[360758482,1746980289728,-1100.0,0.00048,120]
[360758483,1746980289754,-1000.0,0.00048,120]
[360758484,1746980289781,-2000.0,0.00048,120]
[360758485,1746980289810,-900.0,0.00048,49]
[360758486,1746980289838,-175.85574683,0.00048,120]
[360758487,1746980289866,-6102.37176498,0.00048,120]
[360758488,1746980289894,-3217.37365604,0.00048,120]
[360758489,1746980289920,-210.42177644,0.00048,120]
[360758490,1746980289947,-375.36470418,0.00048053,35]
[360758491,1746980289973,-951.0,0.00048111,120]
[360758492,1746980290000,-60000.0,0.000482,40]
[360758493,1746980290027,-1000.0,0.000485,120]
[360758494,1746980290054,-369.45682766,0.000485,120]
[360758495,1746980290081,-500.0,0.000485,30]
[360758496,1746980290107,-2238.30791462,0.000488,120]
[360758497,1746980290134,-150.0,0.00048824,120]
[360758498,1746980290160,-3000.0,0.0004889,48]
[360758499,1746980290189,-50000.0,0.00049,49]
[360758500,1746980290215,-1000.0,0.00049,120]
[360758501,1746980290242,-10000.0,0.00049,120]
[360758502,1746980290268,-548.09467573,0.00049,120]
[360758503,1746980290295,-226.59788003,0.00049,120]
[360758504,1746980290321,-64442.76294322,0.00049,120]
[360758505,1746980290350,-940051.92343175,0.00049,120]
[360758506,1746980290376,-54350.0,0.00049,120]
[360758507,1746980290403,-188.44447996,0.00049015,30]
[360758508,1746980290428,-500.0,0.00049015,30]
[360758509,1746980290455,-500.0,0.00049015,30]
[360758510,1746980290481,-500.0,0.00049015,30]
[360758511,1746980290509,-500.0,0.00049015,30]
[360758512,1746980290535,-288.25571249,0.00049015,30]
[360758513,1746980290562,-2550.0,0.00049068,32]
[360758514,1746980290589,-3000.0,0.0004925,48]
[360758515,1746980290617,-210907.25026945,0.00049305,44]
[360758516,1746980290646,-153.88933097,0.00049315,120]
[360758517,1746980290674,-500.0,0.00049315,120]
[360758518,1746980290706,-500.0,0.00049315,120]
[360758519,1746980290733,-500.0,0.00049315,120]
[360758520,1746980290760,-500.0,0.00049315,120]
[360758521,1746980290787,-500.0,0.00049315,120]
[360758522,1746980290817,-500.0,0.00049315,120]
[360758523,1746980290847,-500.0,0.00049315,120]
[360758524,1746980290875,-500.0,0.00049315,120]
[360758525,1746980290902,-500.0,0.00049315,120]
[360758526,1746980290933,-500.0,0.00049315,120]
[360758527,1746980290960,-203.09155076,0.00049315,120]
[360758528,1746980290988,-350.0,0.00049315,30]
[360758529,1746980291015,-376.0,0.00049315,30]
[360758530,1746980291043,-350.0,0.00049315,30]
[360758531,1746980291071,-474.46006632,0.00049315,120]
[360758532,1746980291105,-509.1392704,0.00049315,120]
[360758533,1746980291133,-1193.87,0.00049315,120]
[360758534,1746980291160,-1193.87,0.00049315,120]
[360758535,1746980291188,-1193.87,0.00049315,120]
[360758536,1746980291216,-1193.87,0.00049315,120]
[360758537,1746980291245,-1193.87,0.00049315,120]
[360758538,1746980291272,-1193.87,0.00049315,120]
[360758539,1746980291299,-1193.87,0.00049315,120]
[360758540,1746980291326,-1193.87,0.00049315,120]
[360758541,1746980291358,-1193.87,0.00049315,120]
[360758542,1746980291385,-1193.87,0.00049315,120]
[360758543,1746980291412,-1193.87,0.00049315,120]
[360758544,1746980291439,-1193.87,0.00049315,120]
[360758545,1746980291466,-1193.87,0.00049315,120]
[360758546,1746980291494,-1193.87,0.00049315,120]
[360758547,1746980291522,-1193.87,0.00049315,120]
[360758548,1746980291551,-1193.87,0.00049315,120]
[360758549,1746980291579,-1193.87,0.00049315,120]
[360758550,1746980291612,-1193.87,0.00049315,120]
[360758551,1746980291640,-1193.87,0.00049315,120]
[360758552,1746980291668,-1193.87,0.00049315,120]
[360758553,1746980291696,-1193.87,0.00049315,120]
[360758554,1746980291724,-1193.87,0.00049315,120]
[360758555,1746980291751,-1193.87,0.00049315,120]
[360758556,1746980291779,-1193.93220661,0.00049315,120]
[360758557,1746980291809,-449.63,0.00049315,120]
[360758558,1746980291841,-150.0,0.00049315,60]
[360758559,1746980291871,-1138.88,0.00049315,120]
[360758560,1746980291904,-1138.88,0.00049315,120]
[360758561,1746980291933,-1138.88,0.00049315,120]
[360758562,1746980291964,-1138.88,0.00049315,120]
[360758563,1746980291993,-1138.88,0.00049315,120]
[360758564,1746980292022,-1138.88,0.00049315,120]
[360758565,1746980292050,-1138.88,0.00049315,120]
[360758566,1746980292321,-1138.88,0.00049315,120]
[360758567,1746980292361,-1138.88,0.00049315,120]
[360758568,1746980292395,-1138.88,0.00049315,120]
[360758569,1746980292428,-1138.88,0.00049315,120]
[360758570,1746980292462,-1138.88,0.00049315,120]
[360758571,1746980292495,-1138.88,0.00049315,120]
[360758572,1746980292530,-1138.88,0.00049315,120]
[360758573,1746980292564,-1138.88,0.00049315,120]
[360758574,1746980292602,-1138.88,0.00049315,120]
[360758575,1746980292637,-1138.88,0.00049315,120]
[360758576,1746980292670,-1138.88,0.00049315,120]
[360758577,1746980292701,-1138.88,0.00049315,120]
[360758578,1746980292732,-1138.88,0.00049315,120]
[360758579,1746980292764,-1138.88,0.00049315,120]
[360758580,1746980292794,-1138.88,0.00049315,120]
[360758581,1746980292828,-1138.88,0.00049315,120]
[360758582,1746980292864,-1138.90741235,0.00049315,120]
[360758583,1746980292894,-500.0,0.00049315,30]
[360758584,1746980292923,-353.25077399,0.00049315,30]
[360758585,1746980292951,-151.0,0.00049315,30]
[360758586,1746980292981,-156.587,0.00049315,30]
[360758587,1746980293012,-162.380719,0.00049315,30]
[360758588,1746980293039,-168.3888056,0.00049315,30]
[360758589,1746980293068,-174.61919141,0.00049315,30]
[360758590,1746980293099,-181.08010149,0.00049315,30]
[360758591,1746980293128,-187.78006525,0.00049315,30]
[360758592,1746980293160,-194.72792766,0.00049315,30]
[360758593,1746980293189,-201.93286099,0.00049315,30]
[360758594,1746980293216,-209.40437684,0.00049315,30]
[360758595,1746980293243,-217.15233878,0.00049315,30]
[360758596,1746980293269,-225.18697532,0.00049315,30]
[360758597,1746980293296,-233.51889341,0.00049315,30]
[360758598,1746980293324,-242.15909246,0.00049315,30]
[360758599,1746980293353,-251.11897888,0.00049315,30]
[360758600,1746980293381,-260.4103811,0.00049315,30]
[360758601,1746980293409,-270.0455652,0.00049315,30]
[360758602,1746980293437,-280.03725112,0.00049315,30]
[360758603,1746980293466,-273.14796694,0.00049315,30]
[360758604,1746980294043,500.0,0.00041095,120]
[360758605,1746980294287,500.0,0.00041095,120]
[360758606,1746980294790,501.46945469,0.00041095,120]
[360758607,1746980295830,734.54464953,0.00044,120]
[360758608,1746980297532,150.0,0.00042862,30]
[360758609,1746980297959,27000.0,0.00049315,30]
[360758610,1746980298089,153.0,0.00041603,30]
[360758611,1746980299501,150.0,0.00042862,30]
[360758612,1746980299789,151.0,0.00049315,30]
[360758613,1746980299893,360.97507393,0.00045469,120]
[360758614,1746980300014,150.0,0.00042862,30]
[360758615,1746980300047,151.0,0.00049315,30]
[360758616,1746980300321,151.0,0.00049315,30]
[360758617,1746980300539,286299.60186745,0.00049305,44]
[360758618,1746980303093,-3831972.79964555,0.00049305,44]
[360758619,1746980303126,-151.0,0.00049315,30]
[360758620,1746980303156,-151.0,0.00049315,30]
[360758621,1746980303740,286.11673186,0.00042862,30]
[360758622,1746980305543,261.67699698,0.00042862,30]
[360758623,1746980307233,728.81830157,0.00045469,120]
[360758624,1746980308136,4383.84746036,0.00042862,30]
[360758625,1746980308598,284605.89772244,0.00049305,44]
[360758626,1746980309372,553.35,0.00048315,120]
[360758628,1746980311362,150.0,0.00048715,120]
[360758629,1746980317270,3000.0,0.00049315,30]